fUST/lending_fUST_20250622
["ID","MTS","AMOUNT","RATE_DAILY","PERIOD"]
[366866177,1750528240822,-654.0,0.0002434,2]
[366866179,1750528240831,-2161.0,0.0002434,2]
[366866181,1750528240840,-482.80946723,0.00024399,2]
[366866182,1750528240850,-1468.84,0.000244,2]
[366866184,1750528240859,-8713.29,0.000244,30]
[366866186,1750528240869,-445.446918,0.00024401,4]
[366866189,1750528240879,-500.0,0.00024474,2]
[366866191,1750528240889,-500.0,0.00024482,2]
[366866193,1750528240898,-773.84,0.00024554,2]
[366866195,1750528240908,-491.96,0.00024554,2]
[366866196,1750528240918,-1050.75,0.00024554,2]
[366866198,1750528240927,-1076.49,0.00024554,2]
[366866200,1750528240937,-460.0,0.00024554,2]
[366866202,1750528240946,-460.0,0.00024554,2]
[366866204,1750528240956,-500.0,0.00024597,2]
[366866206,1750528240966,-151.0,0.000246,10]
[366866209,1750528240976,-1707.650139,0.0002462,5]
[366866211,1750528240986,-1000.0,0.0002464,5]
[366866212,1750528240995,-160.0,0.00024656,2]
[366866235,1750528241211,-460.0,0.00024657,2]
[366866238,1750528241222,-401.3106403,0.00024658,7]
[366866240,1750528241232,-1000.0,0.00024658,2]
[366866242,1750528241242,-1000.0,0.00024658,2]
[366866244,1750528241251,-472.01813702,0.00024658,2]
[366866246,1750528241260,-1000.0,0.00024658,2]
[366866247,1750528241270,-380.0,0.00024658,2]
[366866250,1750528241280,-1000.0,0.00024658,2]
[366866252,1750528241290,-500.0,0.00024658,2]
[366866254,1750528241300,-1000.0,0.0002466,5]
[366866256,1750528241309,-1000.0,0.0002468,5]
[366866258,1750528241319,-539.798535,0.00024685,2]
[366866260,1750528241329,-1000.0,0.000247,5]
[366866261,1750528241338,-1000.0,0.0002472,5]
[366866263,1750528241348,-355.60070895,0.00024724,2]
[366866265,1750528241357,-300.26735433,0.00024732,2]
[366866267,1750528241366,-1000.0,0.0002474,5]
[366866269,1750528241376,-800.0,0.00024745,2]
[366866271,1750528241385,-1000.0,0.0002476,5]
[366866273,1750528241395,-587.0,0.00024768,2]
[366866275,1750528241405,-1000.0,0.0002478,5]
[366866277,1750528241415,-800.0,0.00024794,2]
[366866279,1750528241424,-460.0,0.00024798,2]
[366866281,1750528241434,-773.84,0.00024799,2]
[366866283,1750528241444,-491.96,0.00024799,2]
[366866285,1750528241454,-1050.75,0.00024799,2]
[366866287,1750528241463,-1076.49,0.00024799,2]
[366866289,1750528241473,-460.0,0.00024799,2]
[366866291,1750528241482,-460.0,0.00024799,2]
[366866293,1750528241492,-460.0,0.00024799,2]
[366866295,1750528241501,-460.0,0.00024799,2]
[366866297,1750528241511,-2000.0,0.000248,2]
[366866299,1750528241520,-200.0,0.000248,2]
[366866301,1750528241530,-200.0,0.000248,2]
[366866303,1750528241539,-200.0,0.000248,2]
[366866305,1750528241548,-200.0,0.000248,2]
[366866307,1750528241557,-200.0,0.000248,2]
[366866309,1750528241567,-200.0,0.000248,2]
[366866311,1750528241577,-314.0,0.000248,2]
[366866313,1750528241587,-1000.0,0.000248,5]
[366866315,1750528241597,-410.13,0.000248,31]
[366866317,1750528241607,-410.13,0.000248,31]
[366866319,1750528241616,-410.13,0.000248,31]
[366866321,1750528241626,-410.13,0.000248,31]
[366866323,1750528241635,-410.13,0.000248,31]
[366866325,1750528241645,-410.13,0.000248,31]
[366866327,1750528241654,-410.13,0.000248,31]
[366866329,1750528241664,-410.13,0.000248,31]
[366866331,1750528241674,-410.13,0.000248,31]
[366866333,1750528241683,-410.13,0.000248,31]
[366866335,1750528241693,-410.13,0.000248,31]
[366866337,1750528241702,-410.13,0.000248,31]
[366866339,1750528241712,-410.13,0.000248,31]
[366866341,1750528241722,-410.13,0.000248,31]
[366866343,1750528241733,-410.13,0.000248,31]
[366866345,1750528241743,-410.13,0.000248,31]
[366866347,1750528241752,-26399.5096394,0.000248,2]
[366866349,1750528241762,-460.0,0.000248,2]
[366866351,1750528241771,-773.84,0.00024809,2]
[366866353,1750528241782,-491.96,0.00024809,2]
[366866355,1750528241791,-1050.75,0.00024809,2]
[366866357,1750528241801,-1076.49,0.00024809,2]
[366866359,1750528241811,-460.0,0.00024809,2]
[366866361,1750528241820,-460.0,0.00024809,2]
[366866363,1750528241829,-773.84,0.0002481,2]
[366866365,1750528241838,-491.96,0.0002481,2]
[366866367,1750528241848,-1050.75,0.0002481,2]
[366866369,1750528241857,-1076.49,0.0002481,2]
[366866371,1750528241867,-460.0,0.0002481,2]
[366866373,1750528241877,-460.0,0.0002481,2]
[366866375,1750528241887,-460.0,0.0002481,2]
[366866376,1750528241897,-460.0,0.0002481,2]
[366866377,1750528241906,-28150.13027336,0.00024811,7]
[366866378,1750528241917,-200.0,0.0002484,11]
[366866379,1750528241926,-4399.91827323,0.00024863,2]
[366866380,1750528241936,-773.84,0.00024872,2]
[366866381,1750528241945,-491.96,0.00024872,2]
[366866382,1750528241955,-1050.75,0.00024872,2]
[366866383,1750528241964,-1076.49,0.00024872,2]
[366866384,1750528241973,-460.0,0.00024872,2]
[366866385,1750528241982,-460.0,0.00024872,2]
[366866386,1750528241991,-500.0,0.00024873,2]
[366866387,1750528242000,-500.0,0.00024873,2]
[366866388,1750528242009,-497.22061474,0.00024873,2]
[366866389,1750528242018,-500.0,0.00024873,2]
[366866390,1750528242027,-500.0,0.00024873,2]
[366866391,1750528242036,-500.0,0.00024873,2]
[366866392,1750528242045,-261.05891665,0.00024873,2]
[366866393,1750528242054,-514.31995088,0.00024873,2]
[366866394,1750528242063,-500.0,0.00024873,2]
[366866395,1750528242073,-405.87798726,0.00024873,2]
[366866396,1750528242082,-500.0,0.00024873,2]
[366866397,1750528242091,-500.0,0.00024873,2]
[366866398,1750528242100,-500.0,0.00024873,2]
[366866399,1750528242109,-500.0,0.00024873,2]
[366866400,1750528242118,-500.0,0.00024873,2]
[366866401,1750528242128,-600.0,0.00024873,2]
[366866402,1750528242137,-500.0,0.00024873,2]
[366866403,1750528242147,-500.0,0.00024873,2]
[366866404,1750528242163,-500.0,0.00024873,2]
[366866407,1750528242173,-406.36850021,0.00024873,2]
[366866410,1750528242183,-500.0,0.00024873,2]
[366866414,1750528242194,-460.0,0.00024888,2]
[366866416,1750528242204,-467.23,0.00024888,2]
[366866419,1750528242214,-4399.91827323,0.00024889,2]
[366866421,1750528242224,-773.84,0.00024889,2]
[366866423,1750528242235,-491.96,0.00024889,2]
[366866425,1750528242244,-1050.75,0.00024889,2]
[366866427,1750528242254,-1076.49,0.00024889,2]
[366866429,1750528242264,-460.0,0.00024889,2]
[366866431,1750528242274,-460.0,0.00024889,2]
[366866433,1750528242283,-52799.0192788,0.0002489,2]
[366866435,1750528242292,-773.84,0.00024898,2]
[366866437,1750528242302,-773.84,0.00024898,2]
[366866439,1750528242312,-773.84,0.00024898,2]
[366866441,1750528242321,-773.84,0.00024898,2]
[366866444,1750528242331,-773.84,0.00024898,2]
[366866446,1750528242340,-773.84,0.00024898,2]
[366866449,1750528242350,-774.0046054,0.00024898,2]
[366866451,1750528242359,-491.96,0.00024898,2]
[366866453,1750528242368,-491.96,0.00024898,2]
[366866455,1750528242378,-491.96,0.00024898,2]
[366866457,1750528242388,-491.96,0.00024898,2]
[366866459,1750528242397,-491.96,0.00024898,2]
[366866461,1750528242406,-491.96,0.00024898,2]
[366866463,1750528242417,-492.16,0.00024898,2]
[366866465,1750528242426,-1050.75,0.00024898,2]
[366866467,1750528242436,-1050.75,0.00024898,2]
[366866469,1750528242445,-1050.75,0.00024898,2]
[366866471,1750528242454,-1050.75,0.00024898,2]
[366866473,1750528242463,-1050.75,0.00024898,2]
[366866475,1750528242473,-1050.75,0.00024898,2]
[366866476,1750528242482,-1050.93,0.00024898,2]
[366866478,1750528242492,-1076.49,0.00024898,2]
[366866479,1750528242502,-1076.49,0.00024898,2]
[366866480,1750528242512,-1076.49,0.00024898,2]
[366866481,1750528242522,-1076.49,0.00024898,2]
[366866482,1750528242532,-1076.49,0.00024898,2]
[366866484,1750528242543,-1076.49,0.00024898,2]
[366866486,1750528242554,-1076.605444,0.00024898,2]
[366866487,1750528242564,-460.0,0.00024898,2]
[366866488,1750528242574,-460.0,0.00024898,2]
[366866489,1750528242585,-460.0,0.00024898,2]
[366866490,1750528242595,-460.0,0.00024898,2]
[366866491,1750528242606,-460.0,0.00024898,2]
[366866492,1750528242617,-543.17613242,0.00024898,2]
[366866493,1750528242627,-460.0,0.00024898,2]
[366866494,1750528242640,-460.0,0.00024898,2]
[366866495,1750528242651,-217.3,0.00024898,2]
[366866496,1750528242662,-460.0,0.00024899,2]
[366866497,1750528242673,-460.0,0.00024899,2]
[366866498,1750528242683,-466.07935315,0.00024899,2]
[366866499,1750528242692,-460.0,0.00024899,2]
[366866500,1750528242703,-465.21025429,0.00024899,2]
[366866501,1750528242713,-462.40428532,0.00024899,2]
[366866502,1750528242723,-356.15309531,0.00024899,2]
[366866503,1750528242733,-461.56773626,0.00024899,2]
[366866504,1750528242743,-557.77431141,0.00024899,2]
[366866505,1750528242752,-460.0,0.00024899,2]
[366866506,1750528242762,-464.02069639,0.00024899,2]
[366866507,1750528242772,-460.0,0.00024899,2]
[366866508,1750528242782,-460.0,0.00024899,2]
[366866509,1750528242792,-460.0,0.00024899,2]
[366866510,1750528242801,-460.0,0.00024899,2]
[366866511,1750528242810,-460.0,0.00024899,2]
[366866512,1750528242820,-460.0,0.00024899,2]
[366866513,1750528242829,-460.0,0.00024899,2]
[366866514,1750528242920,-460.0,0.00024899,2]
[366866515,1750528242930,-460.0,0.00024899,2]
[366866516,1750528242939,-460.0,0.00024899,2]
[366866517,1750528242949,-460.0,0.00024899,2]
[366866518,1750528242959,-460.0,0.00024899,2]
[366866519,1750528242969,-460.0,0.00024899,2]
[366866520,1750528242979,-460.0,0.00024899,2]
[366866521,1750528242988,-460.0,0.00024899,2]
[366866522,1750528242998,-460.0,0.00024899,2]
[366866523,1750528243008,-547.45854637,0.00024899,2]
[366866524,1750528243017,-460.0,0.00024899,2]
[366866525,1750528243027,-460.0,0.00024899,2]
[366866526,1750528243036,-460.0,0.00024899,2]
[366866527,1750528243046,-460.0,0.00024899,2]
[366866528,1750528243056,-460.0,0.00024899,2]
[366866529,1750528243066,-460.0,0.00024899,2]
[366866530,1750528243075,-460.0,0.00024899,2]
[366866531,1750528243085,-460.0,0.00024899,2]
[366866532,1750528243095,-460.0,0.00024899,2]
[366866533,1750528243105,-460.0,0.00024899,2]
[366866534,1750528243116,-599.84,0.00024899,2]
[366866535,1750528243125,-460.0,0.00024899,2]
[366866536,1750528243134,-460.0,0.00024899,2]
[366866537,1750528243144,-460.0,0.00024899,2]
[366866538,1750528243158,-460.0,0.00024899,2]
[366866539,1750528243169,-460.0,0.00024899,2]
[366866540,1750528243179,-460.0,0.00024899,2]
[366866541,1750528243190,-460.0,0.00024899,2]
[366866542,1750528243200,-460.0,0.00024899,2]
[366866543,1750528243210,-460.0,0.00024899,2]
[366866544,1750528243220,-460.0,0.00024899,2]
[366866545,1750528243229,-460.0,0.00024899,2]
[366866546,1750528243240,-460.0,0.00024899,2]
[366866547,1750528243250,-159.11617258,0.00024899,2]
[366866548,1750528243259,-460.0,0.00024899,2]
[366866549,1750528243268,-460.0,0.00024899,2]
[366866550,1750528243278,-460.0,0.00024899,2]
[366866551,1750528243287,-460.0,0.00024899,2]
[366866552,1750528243297,-460.0,0.00024899,2]
[366866553,1750528243307,-521.08,0.00024899,2]
[366866554,1750528243316,-469.70487195,0.00024899,2]
[366866555,1750528243326,-460.0,0.00024899,2]
[366866556,1750528243335,-4366.69720465,0.000249,2]
[366866557,1750528243345,-12310.88699224,0.000249,2]
[366866558,1750528243355,-151.0,0.000249,7]
[366866559,1750528243364,-171.0,0.000249,3]
[366866560,1750528243374,-151.0,0.000249,3]
[366866561,1750528243384,-151.0,0.000249,3]
[366866562,1750528243393,-171.0,0.000249,3]
[366866563,1750528243403,-151.0,0.000249,3]
[366866564,1750528243414,-271.23252024,0.000249,3]
[366866565,1750528243423,-151.0,0.000249,3]
[366866566,1750528243433,-151.0,0.000249,3]
[366866568,1750528243444,-151.0,0.000249,3]
[366866570,1750528243453,-151.0,0.000249,3]
[366866571,1750528243463,-151.0,0.000249,3]
[366866572,1750528243472,-151.0,0.000249,3]
[366866573,1750528243482,-151.0,0.000249,3]
[366866574,1750528243492,-151.0,0.000249,3]
[366866575,1750528243501,-151.0,0.000249,3]
[366866576,1750528243511,-151.0,0.000249,3]
[366866577,1750528243521,-151.0,0.000249,3]
[366866578,1750528243530,-250.66227649,0.000249,3]
[366866579,1750528243539,-3989.42,0.000249,7]
[366866580,1750528243549,-500.0,0.000249,9]
[366866581,1750528243558,-500.0,0.000249,9]
[366866582,1750528243569,-424.93363889,0.000249,7]
[366866583,1750528243579,-230.10342898,0.000249,7]
[366866584,1750528243588,-146234.02008197,0.000249,2]
[366866587,1750528243662,-25223.44045344,0.000249,2]
[366866590,1750528243674,-5180.994,0.000249,2]
[366866599,1750528244680,-10308.94024661,0.000249,2]
[366866600,1750528244866,-991.65267594,0.00022866,8]
[366866601,1750528244876,-991.65267594,0.00023003,8]
[366866602,1750528244889,-991.65267594,0.00023141,8]
[366866603,1750528244898,-991.65267594,0.00023279,8]
[366866604,1750528244908,-991.65267594,0.00023417,9]
[366866605,1750528244917,-991.65267594,0.00023555,9]
[366866606,1750528244926,-991.65267594,0.00023693,9]
[366866607,1750528244936,-991.65267594,0.00023831,10]
[366866608,1750528244945,-991.65267594,0.00023969,10]
[366866609,1750528244955,-991.65267594,0.00024107,10]
[366866610,1750528244965,-991.65267594,0.00024245,10]
[366866611,1750528244974,-991.65267594,0.00024383,11]
[366866612,1750528244983,-991.65267594,0.00024521,11]
[366866613,1750528244993,-991.65267594,0.00024659,11]
[366866614,1750528245003,-991.65267594,0.00024797,11]
[366866615,1750528245012,-6998.37982267,0.000249,2]
[366866637,1750528466135,176.582687,0.00013699,2]
[366866638,1750528662138,163.78635879,0.00017233,3]
[366866639,1750528701579,666.0,0.0001904,2]
[366866642,1750528904578,274.43371602,0.00018939,2]
[366866643,1750528919245,262.7346783,0.00018966,2]
[366866644,1750528942630,10000.0,0.00019102,2]
[366866645,1750528974029,5000.0,0.00023,30]
[366866646,1750529006512,5000.0,0.00019102,2]
[366866647,1750529007858,5235.0349482,0.00018968,2]
[366866648,1750529021758,5000.0,0.00019102,2]
[366866649,1750529037152,5000.0,0.00019102,2]
[366866650,1750529052207,5000.0,0.00019102,2]
[366866651,1750529153114,864.4877747,0.00018926,2]
[366866653,1750529256922,219.6959629,0.00018967,2]
[366866654,1750529257337,-374.0,0.00019369,2]
[366866655,1750529288461,-223.0,0.00019327,2]
[366866657,1750529405716,-218.017432,0.00019269,3]
[366866694,1750529431913,-83.1474484,0.00019269,3]
[366866695,1750529431924,-20.02672459,0.00019327,2]
[366866696,1750529431933,-301.76674661,0.00019346,2]
[366866697,1750529431943,-4626.0,0.00019369,2]
[366866698,1750529431953,-301.76674657,0.00019461,2]
[366866699,1750529431964,-301.76674657,0.00019575,2]
[366866700,1750529431974,-301.76674657,0.00019689,2]
[366866701,1750529431984,-301.76674657,0.00019804,2]
[366866702,1750529431994,-1200.0,0.00019813,2]
[366866703,1750529432004,-19.82357967,0.00019814,2]
[366866704,1750529432026,-745.66726665,0.00019814,2]
[366867026,1750529449137,-314.48519801,0.00019814,2]
[366867027,1750529449154,-800.1371753,0.00019814,2]
[366867028,1750529449163,-156.587,0.00019903,2]
[366867029,1750529449174,-500.0,0.00019903,2]
[366867030,1750529449184,-1058.22404046,0.00019903,2]
[366867031,1750529449194,-1058.22404046,0.00019903,2]
[366867032,1750529449205,-1058.22404046,0.00019903,2]
[366867033,1750529449216,-500.0,0.00019903,2]
[366867034,1750529449227,-1058.22404046,0.00019903,2]
[366867035,1750529449237,-1058.22404046,0.00019903,2]
[366867036,1750529449247,-1058.22404046,0.00019903,2]
[366867037,1750529449258,-500.0,0.00019903,2]
[366867038,1750529449268,-500.0,0.00019903,2]
[366867039,1750529449279,-1058.22404046,0.00019903,2]
[366867040,1750529449289,-1058.22404046,0.00019903,2]
[366867041,1750529449298,-234.50057334,0.00019903,2]
[366867042,1750529449309,-1058.22404046,0.00019903,2]
[366867043,1750529449319,-1058.22404046,0.00019903,2]
[366867044,1750529449329,-1058.22404046,0.00019903,2]
[366867045,1750529449339,-1058.22404046,0.00019903,2]
[366867046,1750529449348,-1058.22404046,0.00019903,2]
[366867047,1750529449358,-1058.22404046,0.00019903,2]
[366867048,1750529449367,-1058.22404046,0.00019903,2]
[366867049,1750529449377,-1058.22404046,0.00019903,2]
[366867050,1750529449387,-164.9101268,0.00019903,2]
[366867051,1750529449397,-500.3111991,0.00019903,2]
[366867052,1750529449408,-500.0,0.00019903,2]
[366867053,1750529449418,-500.0,0.00019903,2]
[366867054,1750529449427,-500.0,0.00019903,2]
[366867055,1750529449437,-500.0,0.00019903,2]
[366867056,1750529449447,-500.0,0.00019903,2]
[366867057,1750529449457,-361.19300755,0.00019903,2]
[366867058,1750529449467,-500.0,0.00019903,2]
[366867059,1750529449477,-500.0,0.00019903,2]
[366867060,1750529449487,-500.0,0.00019903,2]
[366867061,1750529449497,-500.0,0.00019903,2]
[366867062,1750529449506,-500.0,0.00019903,2]
[366867063,1750529449515,-500.0,0.00019903,2]
[366867064,1750529449524,-500.0,0.00019903,2]
[366867065,1750529449534,-500.0,0.00019903,2]
[366867066,1750529449543,-500.0,0.00019903,2]
[366867067,1750529449552,-500.0,0.00019903,2]
[366867068,1750529449562,-500.0,0.00019903,2]
[366867069,1750529449571,-500.0,0.00019903,2]
[366867070,1750529449580,-500.0,0.00019903,2]
[366867071,1750529449589,-500.0,0.00019903,2]
[366867072,1750529449599,-500.0,0.00019903,2]
[366867073,1750529449608,-500.0,0.00019903,2]
[366867074,1750529449618,-500.0,0.00019903,2]
[366867075,1750529449627,-500.0,0.00019903,2]
[366867076,1750529449637,-532.14809754,0.00019903,2]
[366867077,1750529449646,-610.0,0.00019903,2]
[366867078,1750529449655,-500.0,0.00019903,2]
[366867079,1750529449665,-500.0,0.00019903,2]
[366867080,1750529449679,-500.0,0.00019903,2]
[366867081,1750529449688,-550.0,0.00019903,2]
[366867082,1750529449698,-500.0,0.00019903,2]
[366867083,1750529449709,-500.0,0.00019903,2]
[366867084,1750529449719,-500.0,0.00019903,2]
[366867085,1750529449729,-630.5544026,0.00019903,2]
[366867086,1750529449739,-500.0,0.00019903,2]
[366867087,1750529449748,-500.0,0.00019903,2]
[366867088,1750529449758,-500.0,0.00019903,2]
[366867089,1750529449768,-500.0,0.00019903,2]
[366867090,1750529449777,-393.18979179,0.00019903,2]
[366867091,1750529449787,-500.0,0.00019903,2]
[366867092,1750529449796,-500.0,0.00019903,2]
[366867093,1750529449806,-472.35761085,0.00019903,2]
[366867094,1750529449816,-500.0,0.00019903,2]
[366867095,1750529449825,-500.0,0.00019903,2]
[366867096,1750529449834,-500.0,0.00019903,2]
[366867097,1750529449844,-1058.22404046,0.00019903,2]
[366867098,1750529449853,-500.0,0.00019903,2]
[366867099,1750529449863,-500.0,0.00019903,2]
[366867100,1750529449872,-500.0,0.00019903,2]
[366867101,1750529449881,-214.65578859,0.00019903,2]
[366867102,1750529449890,-500.0,0.00019903,2]
[366867103,1750529449900,-500.0,0.00019903,2]
[366867104,1750529449909,-500.0,0.00019903,2]
[366867105,1750529449919,-500.0,0.00019903,2]
[366867106,1750529449928,-500.0,0.00019903,2]
[366867107,1750529449938,-500.0,0.00019903,2]
[366867108,1750529449948,-500.0,0.00019903,2]
[366867109,1750529449957,-500.0,0.00019903,2]
[366867110,1750529449967,-500.0,0.00019903,2]
[366867111,1750529449976,-500.0,0.00019903,2]
[366867112,1750529449986,-500.0,0.00019903,2]
[366867113,1750529449995,-500.0,0.00019903,2]
[366867114,1750529450005,-519.71685082,0.00019903,2]
[366867115,1750529450015,-500.0,0.00019903,2]
[366867116,1750529450024,-500.0,0.00019903,2]
[366867117,1750529450033,-500.0,0.00019903,2]
[366867118,1750529450043,-500.0,0.00019903,2]
[366867119,1750529450053,-500.0,0.00019903,2]
[366867120,1750529450173,-500.0,0.00019903,2]
[366867121,1750529450183,-500.0,0.00019903,2]
[366867122,1750529450194,-500.0,0.00019903,2]
[366867123,1750529450205,-500.0,0.00019903,2]
[366867124,1750529450215,-500.0,0.00019903,2]
[366867125,1750529450225,-500.0,0.00019903,2]
[366867126,1750529450235,-500.0,0.00019903,2]
[366867127,1750529450245,-500.0,0.00019903,2]
[366867128,1750529450255,-500.0,0.00019903,2]
[366867129,1750529450265,-500.0,0.00019903,2]
[366867130,1750529450275,-500.0,0.00019903,2]
[366867131,1750529450285,-500.0,0.00019903,2]
[366867132,1750529450295,-500.0,0.00019903,2]
[366867133,1750529450305,-500.0,0.00019903,2]
[366867134,1750529450315,-500.0,0.00019903,2]
[366867135,1750529450324,-500.0,0.00019903,2]
[366867136,1750529450334,-500.0,0.00019903,2]
[366867137,1750529450344,-450.0,0.00019903,2]
[366867138,1750529450354,-500.0,0.00019903,2]
[366867139,1750529450363,-500.0,0.00019903,2]
[366867140,1750529450372,-500.0,0.00019903,2]
[366867141,1750529450382,-500.0,0.00019903,2]
[366867142,1750529450391,-500.0,0.00019903,2]
[366867143,1750529450400,-500.0,0.00019903,2]
[366867144,1750529450409,-500.0,0.00019903,2]
[366867145,1750529450418,-602.51384052,0.00019903,2]
[366867146,1750529450426,-497.70421396,0.00019903,2]
[366867147,1750529450435,-500.0,0.00019903,2]
[366867148,1750529450444,-500.0,0.00019903,2]
[366867149,1750529450454,-500.0,0.00019903,2]
[366867150,1750529450463,-500.0,0.00019903,2]
[366867151,1750529450472,-500.0,0.00019903,2]
[366867152,1750529450482,-500.0,0.00019903,2]
[366867153,1750529450491,-500.0,0.00019903,2]
[366867154,1750529450501,-500.0,0.00019903,2]
[366867155,1750529450510,-500.0,0.00019903,2]
[366867156,1750529450520,-500.0,0.00019903,2]
[366867157,1750529450529,-1058.22404046,0.00019903,2]
[366867158,1750529450539,-500.0,0.00019903,2]
[366867159,1750529450548,-500.0,0.00019903,2]
[366867160,1750529450557,-500.0,0.00019903,2]
[366867161,1750529450567,-500.0,0.00019903,2]
[366867162,1750529450576,-500.0,0.00019903,2]
[366867163,1750529450586,-500.0,0.00019903,2]
[366867164,1750529450594,-300.0,0.00019903,2]
[366867165,1750529450605,-300.0,0.00019903,2]
[366867166,1750529450615,-300.0,0.00019903,2]
[366867167,1750529450624,-300.0,0.00019903,2]
[366867168,1750529450632,-473.07,0.00019904,3]
[366867169,1750529450640,-50000.0,0.00019905,2]
[366867170,1750529450648,-630.75,0.00019905,3]
[366867171,1750529450656,-315.38,0.00019905,3]
[366867172,1750529450664,-300.0,0.00019913,2]
[366867173,1750529450674,-500.0,0.00019915,2]
[366867174,1750529450686,-7052.7527727,0.00019916,2]
[366867175,1750529450694,-157.69,0.0001995,3]
[366867176,1750529450705,-162.380719,0.00019958,2]
[366867177,1750529450715,-668.653066,0.0001996,2]
[366867178,1750529450724,-500.0,0.00019973,2]
[366867179,1750529450733,-518.64941684,0.00019973,2]
[366867180,1750529450742,-500.0,0.00019973,2]
[366867181,1750529450752,-500.0,0.00019973,2]
[366867182,1750529450761,-500.0,0.00019973,2]
[366867183,1750529450770,-575.1298776,0.00019973,2]
[366867184,1750529450779,-500.0,0.00019973,2]
[366867185,1750529450788,-500.0,0.00019973,2]
[366867186,1750529450797,-500.0,0.00019973,2]
[366867187,1750529450806,-500.0,0.00019973,2]
[366867188,1750529450815,-500.0,0.00019973,2]
[366867189,1750529450824,-500.0,0.00019973,2]
[366867190,1750529450833,-500.0,0.00019973,2]
[366867191,1750529450843,-502.38615315,0.00019973,2]
[366867192,1750529450852,-500.0,0.00019973,2]
[366867193,1750529450861,-500.0,0.00019973,2]
[366867194,1750529450871,-500.0,0.00019973,2]
[366867195,1750529450880,-500.0,0.00019973,2]
[366867196,1750529450889,-500.0,0.00019973,2]
[366867197,1750529450898,-500.0,0.00019973,2]
[366867198,1750529450907,-318.31523256,0.00019973,2]
[366867199,1750529450917,-504.26417728,0.00019973,2]
[366867200,1750529450926,-500.0,0.00019973,2]
[366867201,1750529450935,-500.84850324,0.00019973,2]
[366867202,1750529450944,-500.0,0.00019973,2]
[366867203,1750529450954,-500.0,0.00019973,2]
[366867204,1750529450964,-501.90290909,0.00019973,2]
[366867205,1750529450973,-500.0,0.00019973,2]
[366867206,1750529450982,-501.58342673,0.00019973,2]
[366867207,1750529450992,-500.0,0.00019973,2]
[366867208,1750529451001,-154.24575744,0.00019973,2]
[366867209,1750529451010,-166.08402189,0.00019973,2]
[366867210,1750529451019,-256.63666679,0.00019973,2]
[366867211,1750529451028,-500.0,0.00019973,2]
[366867212,1750529451037,-500.0,0.00019973,2]
[366867213,1750529451046,-168.3888056,0.00020013,2]
[366867214,1750529451055,-163.79816181,0.00020068,2]
[366867215,1750529451064,-183.79,0.00020095,2]
[366867216,1750529451073,-183.79,0.00020095,2]
[366867217,1750529451082,-1017.90801922,0.00020095,2]
[366867218,1750529451092,-24900.0,0.00020108,2]
[366867219,1750529451101,-500.0,0.00020173,2]
[366867220,1750529451110,-500.0,0.00020173,2]
[366867221,1750529451120,-500.0,0.00020173,2]
[366867222,1750529451129,-451.29546224,0.00020173,2]
[366867223,1750529451138,-250.51657066,0.00020173,2]